bitfinex-derivatives/quotes_BNBF0:USTF0_20250326
["timestamp","ask_amount","ask_price","bid_price","bid_amount"]
[1742996491013,1.151,629.33,628.74,0.26227074]
[1742996491208,0.424,629.27,628.74,0.26227074]
[1742996492215,0.424,629.27,628.64,1.18810563]
[1742996492415,0.424,629.27,628.65,0.26226955]
[1742996494114,1.21325385,629.26,628.65,0.26226955]
[1742996494413,1.2130425,629.25,628.65,0.26226955]
[1742996494612,1.2130425,629.24,628.65,0.26226955]
[1742996494819,0.424,629.27,628.65,0.26226955]
[1742996495017,1.21301836,629.26,628.65,0.26226955]
[1742996495316,1.21301836,629.25,628.66,0.2622881]
[1742996495518,1.21301836,629.24,628.67,0.2622881]
[1742996495710,0.70066806,629.27,628.68,0.2622881]
[1742996495911,1.21284178,629.26,628.69,0.2622881]
[1742996496217,1.21284178,629.25,628.7,0.2622881]
[1742996496417,1.21284178,629.24,628.65,0.2622881]
[1742996496711,0.70066806,629.27,628.66,0.26228754]
[1742996496919,1.21272287,629.26,628.67,0.26228754]
[1742996497110,1.21272287,629.25,628.64,1.18810563]
[1742996497315,1.21272287,629.24,628.65,0.26228907]
[1742996497514,0.424,629.27,628.65,0.26228907]
[1742996497515,1.21272287,629.23,628.65,0.26228907]
[1742996497711,0.70066586,629.27,628.65,0.26228907]
[1742996498312,0.70066586,629.27,628.6,0.26228907]
[1742996498517,0.70066586,629.27,628.61,0.26228907]
[1742996498715,0.70066586,629.27,628.6,0.26228907]
[1742996498918,0.70066586,629.27,628.61,0.26228907]
[1742996499116,0.70066586,629.27,628.6,0.26228907]
[1742996499317,0.70066586,629.27,628.61,0.26228907]
[1742996499619,0.70066586,629.27,628.62,0.26228907]
[1742996499817,0.70066586,629.27,628.63,0.26228907]
[1742996500019,0.424,629.27,628.6,1.4503947]
[1742996500213,0.424,629.27,628.61,0.26228907]
[1742996500414,0.70067026,629.27,628.61,0.26228907]
[1742996500816,0.482,629.26,628.61,0.26228907]
[1742996502025,0.482,629.26,628.62,0.26228907]
[1742996502219,0.482,629.26,628.52,0.26228907]
[1742996502518,0.482,629.26,628.53,0.26228907]
[1742996502714,0.482,629.26,628.52,0.26228907]
[1742996502921,0.482,629.26,628.53,0.26228907]
[1742996503119,0.482,629.26,628.54,0.26228907]
[1742996503319,0.482,629.26,628.55,0.26228907]
[1742996503520,0.482,629.26,628.52,0.26228907]
[1742996503714,0.482,629.26,628.53,0.26228907]
[1742996503918,0.482,629.26,628.51,1.18810563]
[1742996503919,0.482,629.26,628.54,0.26228907]
[1742996504114,0.482,629.26,628.51,1.18810563]
[1742996504315,0.482,629.26,628.52,0.26228694]
[1742996504518,0.482,629.26,628.54,1.18810563]
[1742996504719,0.482,629.26,628.55,0.26228694]
[1742996506123,0.482,629.26,628.6,1.18810563]
[1742996506316,0.482,629.26,628.61,0.26228694]
[1742996507324,0.482,629.26,628.62,0.26227819]
[1742996507520,0.482,629.26,628.63,0.26227819]
[1742996507718,0.482,629.26,628.65,1.18810563]
[1742996507919,0.482,629.26,628.66,0.26227819]
[1742996508822,0.482,629.26,628.67,0.26228352]
[1742996509026,1.21242549,629.25,628.68,0.26228352]
[1742996509220,1.21242549,629.25,628.65,1.18810563]
[1742996509221,1.21242549,629.24,628.69,0.26228352]
[1742996509532,1.21242549,629.23,628.7,0.26228352]
[1742996509734,0.482,629.26,628.7,1.18810563]
[1742996509933,1.21326639,629.25,628.71,0.26228352]
[1742996510234,0.482,629.26,628.7,1.18810563]
[1742996510430,1.21333949,629.25,628.71,0.26228192]
[1742996510631,0.482,629.26,628.71,0.26228192]
[1742996510828,1.21333546,629.25,628.71,0.26228192]
[1742996511033,0.482,629.26,628.71,0.26228192]
[1742996511234,1.21333256,629.25,628.71,0.26228192]
[1742996511433,0.482,629.26,628.71,0.26228192]
[1742996511635,1.21344114,629.25,628.75,1.18810563]
[1742996511828,0.482,629.26,628.75,1.18810563]
[1742996512028,1.21345862,629.25,628.75,1.18810563]
[1742996512230,0.482,629.26,628.75,1.18810563]
[1742996512428,1.21357354,629.25,628.75,1.18810563]
[1742996512634,0.482,629.26,628.75,1.18810563]
[1742996512833,1.21358204,629.25,628.75,1.18810563]
[1742996513034,1.21358204,629.24,628.75,1.18810563]
[1742996513233,1.21369537,629.23,628.78,1.18810563]
[1742996513426,0.482,629.26,628.78,1.18810563]
[1742996513629,1.21372312,629.25,628.78,1.18810563]
[1742996513828,1.21372312,629.24,628.78,1.18810563]
[1742996514029,1.21372312,629.23,628.78,1.18810563]
[1742996514233,1.21372312,629.22,628.78,1.18810563]
[1742996514434,0.482,629.26,628.78,1.18810563]
[1742996514632,1.21396678,629.25,628.78,1.18810563]
[1742996514831,1.21396678,629.24,628.78,1.18810563]
[1742996515038,1.21396678,629.23,628.78,1.18810563]
[1742996515229,1.21413632,629.22,628.79,0.26227087]
[1742996515430,0.482,629.26,628.79,0.26227087]
[1742996515636,1.21416126,629.25,628.79,0.26227087]
[1742996515836,1.21416126,629.24,628.78,1.18810563]
[1742996516039,0.482,629.26,628.78,1.18810563]
[1742996516536,0.482,629.26,628.85,1.18810563]
[1742996517333,1.21466576,629.25,628.85,1.18810563]
[1742996517528,1.21466576,629.24,628.85,1.18810563]
[1742996517731,0.482,629.26,628.85,1.18810563]
[1742996518036,1.21472623,629.25,628.89,1.18810563]
[1742996518335,1.21493166,629.24,628.89,1.18810563]
[1742996518636,1.21497086,629.23,628.89,1.18810563]
[1742996518835,0.482,629.26,628.89,1.18810563]
[1742996519035,1.21498399,629.25,628.89,1.18810563]
[1742996519232,1.21498399,629.24,628.89,1.18810563]
[1742996519434,1.21498399,629.23,628.89,1.18810563]
[1742996519735,0.482,629.26,628.89,1.18810563]
[1742996520130,1.21519453,629.25,628.89,1.18810563]
[1742996520333,1.21519453,629.24,628.89,1.18810563]
[1742996520533,1.21519453,629.23,628.89,1.18810563]
[1742996520734,0.704,629.24,628.89,1.18810563]
[1742996521234,1.21514968,629.23,628.89,1.18810563]
[1742996521431,0.704,629.24,628.89,1.18810563]
[1742996521631,1.21522404,629.23,628.89,1.18810563]
[1742996521831,0.704,629.24,628.89,1.18810563]
[1742996522036,1.21528463,629.23,628.89,1.18810563]
[1742996522236,1.21551664,629.22,628.89,1.18810563]
[1742996522532,0.425,629.21,628.89,1.18810563]
[1742996523236,0.425,629.21,628.84,1.18810563]
[1742996523237,1.21559711,629.2,628.84,1.18810563]
[1742996523436,0.425,629.21,628.84,1.18810563]
[1742996523740,1.21559736,629.2,628.84,1.18810563]
[1742996524037,1.21559736,629.19,628.84,1.18810563]
[1742996524333,0.425,629.21,628.84,1.18810563]
[1742996524536,1.21576527,629.2,628.84,1.18810563]
[1742996524737,1.21573908,629.19,628.84,1.18810563]
[1742996524940,1.21570949,629.18,628.82,1.18810563]
[1742996525140,1.21570949,629.17,628.82,1.18810563]
[1742996525341,1.21570949,629.16,628.82,1.18810563]
[1742996525540,0.425,629.21,628.82,1.18810563]
[1742996525738,1.21587361,629.2,628.82,1.18810563]
[1742996525935,1.21587361,629.19,628.82,1.18810563]
[1742996526237,1.21587361,629.18,628.82,1.18810563]
[1742996526435,1.21587361,629.17,628.82,1.18810563]
[1742996526639,1.21587361,629.16,628.82,1.18810563]
[1742996526839,0.425,629.21,628.82,1.18810563]
[1742996527036,1.21612486,629.2,628.82,1.18810563]
[1742996527238,1.21612486,629.19,628.82,1.18810563]
[1742996527437,1.21612486,629.18,628.86,1.18810563]
[1742996527642,1.21612486,629.17,628.86,1.18810563]
[1742996527838,1.21612486,629.16,628.86,1.18810563]
[1742996528144,0.425,629.21,628.86,1.18810563]
[1742996528145,1.21612486,629.15,628.86,1.18810563]
[1742996528344,1.21612486,629.14,628.86,1.18810563]
[1742996528644,1.21612486,629.13,628.86,1.18810563]
[1742996528943,0.425,629.21,628.86,1.18810563]
[1742996529145,1.2167221,629.2,628.86,1.18810563]
[1742996529444,1.2167221,629.19,628.86,1.18810563]
[1742996529645,1.2167221,629.18,628.86,1.18810563]
[1742996529847,1.2167221,629.17,628.86,1.18810563]
[1742996530146,0.425,629.21,628.86,1.18810563]
[1742996530340,0.425,629.21,628.87,0.26222025]
[1742996530545,0.483,629.2,628.87,0.26222025]
[1742996531351,0.483,629.2,628.86,1.18810563]
[1742996533545,0.483,629.2,628.98,1.18810563]
[1742996535950,0.483,629.2,628.82,1.18810563]
[1742996536351,0.483,629.2,628.83,0.26217367]
[1742996536548,0.483,629.2,628.82,1.18810563]
[1742996538056,0.483,629.2,628.83,0.26217099]
[1742996538752,0.483,629.2,628.82,1.18810563]
[1742996538952,0.483,629.2,628.86,1.18810563]
[1742996539350,0.483,629.2,628.87,0.26216971]
[1742996541156,0.483,629.2,628.9,1.18810563]
[1742996541356,0.483,629.2,628.91,0.26216971]
[1742996541753,0.908,629.2,628.91,0.26216971]
[1742996542155,0.908,629.2,628.92,0.2621659]
[1742996542351,0.908,629.2,628.91,0.2621659]
[1742996542550,0.908,629.2,628.92,0.2621659]
[1742996542752,0.908,629.2,628.91,0.2621659]
[1742996543056,0.908,629.2,628.92,0.2621659]
[1742996543257,0.908,629.2,628.93,0.2621659]
[1742996543453,0.908,629.2,628.94,0.2621659]
[1742996543652,0.908,629.2,628.95,0.26213601]
[1742996543852,0.908,629.2,628.91,0.26213601]
[1742996544053,0.908,629.2,628.92,0.26213601]
[1742996544253,0.908,629.2,629.01,1.18810563]
[1742996544455,0.908,629.2,629.02,0.26213601]
[1742996545262,0.908,629.2,629.03,0.26206764]
[1742996545560,0.908,629.2,629.04,0.26206764]
[1742996545859,0.908,629.2,629.05,0.26206764]
[1742996546059,0.908,629.2,629.02,0.26206764]
[1742996546259,0.908,629.2,629.03,0.26206764]
[1742996546561,0.908,629.2,629.04,0.26206764]
[1742996546760,0.908,629.2,629.05,0.26207939]
[1742996546960,0.908,629.2,629.06,0.26207939]
[1742996547160,0.908,629.2,629.02,0.26207939]
[1742996547356,0.908,629.2,629.03,0.26207939]
[1742996547563,0.908,629.2,629.05,1.18810563]
[1742996547763,0.908,629.2,629.06,0.26207989]
[1742996549356,0.908,629.2,629.07,0.26207989]
[1742996549561,0.908,629.2,628.94,0.26207989]
[1742996549764,0.908,629.2,628.95,0.26207989]
[1742996549956,0.908,629.2,628.94,0.26207989]
[1742996550156,0.908,629.2,628.95,0.26207989]
[1742996550364,0.908,629.2,628.94,0.26207989]
[1742996550557,0.908,629.2,628.95,0.26207989]
[1742996550767,0.908,629.2,628.96,0.26207989]
[1742996551162,0.908,629.2,628.97,0.26207989]
[1742996551357,0.908,629.2,628.94,1.45018552]
[1742996551563,0.908,629.2,628.95,0.26207989]
[1742996552766,0.908,629.2,629.04,1.18810563]
[1742996553162,0.908,629.2,629.05,0.26209054]
[1742996554859,0.908,629.2,629.06,0.26209054]
[1742996555061,0.908,629.2,629.07,0.26209054]
[1742996555259,0.908,629.2,629.08,0.26209054]
[1742996555457,0.908,629.2,629.02,1.18810563]
[1742996555458,0.908,629.2,629.03,0.26209054]
[1742996555661,0.908,629.2,629.04,0.26209054]
[1742996555862,0.908,629.2,629.05,0.26209054]
[1742996556264,0.908,629.2,629.06,0.26209054]
[1742996556465,0.425,629.2,629.07,0.26209054]
[1742996556765,0.425,629.2,629.08,0.26209054]
[1742996556960,0.425,629.2,629.02,1.18810563]
[1742996557165,0.425,629.2,629.03,0.26214403]
[1742996557360,0.425,629.2,628.94,1.18810563]
[1742996559266,0.425,629.2,628.79,1.18810563]
[1742996559559,0.908,629.2,628.8,0.2621508]
[1742996560766,0.908,629.2,628.81,0.26218362]
[1742996560967,0.908,629.2,628.8,0.26218362]
[1742996561267,0.908,629.2,628.81,0.26218362]
[1742996561465,0.908,629.2,628.82,0.26218362]
[1742996561667,0.908,629.2,628.8,0.26218362]
[1742996561969,0.908,629.2,628.81,0.26218362]
[1742996562168,0.908,629.2,628.82,0.26218362]
[1742996562368,0.908,629.2,628.75,0.26218362]
[1742996562562,0.908,629.2,628.76,0.26218362]
[1742996562766,0.908,629.2,628.77,0.26218362]
[1742996562970,0.908,629.2,628.78,0.26218362]
[1742996563164,0.908,629.2,628.75,0.26218362]
[1742996563366,0.908,629.2,628.76,0.26218362]
[1742996563669,0.908,629.2,628.77,0.26218362]
[1742996563871,1.485,629.2,628.78,0.26217994]
[1742996564064,1.485,629.2,628.91,1.18810563]
[1742996564267,1.485,629.2,628.92,0.26217994]
[1742996566577,1.485,629.2,628.91,1.18810563]
[1742996567574,1.485,629.2,628.97,1.18810563]
[1742996569175,1.485,629.2,628.86,1.18810563]
[1742996574484,1.485,629.2,628.85,1.18810563]
[1742996575077,1.485,629.2,628.86,0.26217976]
[1742996577081,1.485,629.2,628.83,1.18810563]
[1742996577279,1.485,629.2,628.84,0.26218318]
[1742996578283,1.485,629.2,628.83,1.18810563]
[1742996578880,1.485,629.2,628.61,0.27660319]
[1742996578881,1.485,629.2,628.81,1.18810563]
[1742996581485,1.485,629.2,628.62,1.18810563]
[1742996582290,1.21712053,629.19,628.63,0.26224951]
[1742996582484,1.21703017,629.18,628.63,0.26224951]
[1742996582683,0.27664826,629.39,628.63,0.26224951]
[1742996582890,1.21697512,629.38,628.63,0.26224951]
[1742996583094,1.21697512,629.37,628.63,0.26224951]
[1742996583394,1.21697512,629.36,628.63,0.26224951]
[1742996583589,1.21697512,629.35,628.63,0.26224951]
[1742996583793,1.21697512,629.34,628.73,1.18810563]
[1742996583993,2.12077369,629.33,628.74,0.26224951]
[1742996584195,1.21697512,629.32,628.74,0.26224951]
[1742996584494,2.12077369,629.31,628.74,0.26224951]
[1742996584792,2.12077369,629.3,628.74,0.26224951]
[1742996584991,1.21697512,629.29,628.74,0.26224951]
[1742996585191,2.1207516,629.28,628.74,0.26224951]
[1742996585397,1.21695303,629.27,628.74,0.26224951]
[1742996585590,2.1207516,629.26,628.74,0.26224951]
[1742996585791,1.21695303,629.25,628.74,0.26224951]
[1742996585996,1.21695303,629.24,628.74,0.26224951]
[1742996586196,2.1207516,629.23,628.74,0.26224951]
[1742996586399,1.21695303,629.22,628.74,1.45035514]
[1742996586699,2.1207516,629.21,628.75,0.26224951]
[1742996586994,2.1207516,629.2,628.75,0.26224951]
[1742996587193,1.21693564,629.19,628.75,0.26224951]
[1742996587399,2.12073421,629.18,628.74,1.18810563]
[1742996587593,2.12073421,629.17,628.74,1.18810563]
[1742996587793,1.21693564,629.16,628.74,1.18810563]
[1742996588098,2.12073421,629.15,628.74,1.18810563]
[1742996588299,1.21693564,629.14,628.74,1.18810563]
[1742996588495,1.21693564,629.13,628.74,1.18810563]
[1742996588703,1.21693564,629.12,628.74,1.18810563]
[1742996589003,1.21693564,629.11,628.74,1.18810563]
[1742996589199,1.21693564,629.11,628.46,1.18810563]
[1742996589200,1.21675579,629.1,628.65,1.18810563]
[1742996589404,0.90379857,629.11,628.66,0.26230823]
[1742996589604,0.483,629.22,628.66,0.26230823]
[1742996589803,2.11994367,629.21,628.66,0.26230823]
[1742996590010,1.2164892,629.2,628.66,0.26230823]
[1742996590210,1.2164892,629.19,628.66,0.26230823]
[1742996590411,2.11994367,629.18,628.66,0.26230823]
[1742996590618,1.2164892,629.17,628.66,0.26230823]
[1742996590810,1.2164892,629.16,628.66,0.26230823]
[1742996591117,1.2164892,629.15,628.65,1.18810563]
[1742996591309,1.2164892,629.14,628.66,0.26230394]
[1742996591509,1.2164892,629.13,628.66,0.26230394]
[1742996591706,1.2164892,629.12,628.66,0.26230394]
[1742996591909,1.21591595,629.11,628.65,1.18810563]
[1742996592210,0.483,629.22,628.65,1.18810563]
[1742996592420,1.21552116,629.21,628.65,1.18810563]
[1742996592618,1.21552116,629.2,628.65,1.18810563]
[1742996592809,1.21552116,629.19,628.65,1.18810563]
[1742996593110,1.21552116,629.18,628.65,1.18810563]
[1742996593409,2.1182498,629.17,628.65,1.18810563]
[1742996593610,1.21552116,629.16,628.65,1.18810563]
[1742996593807,1.21552116,629.15,628.65,1.18810563]
[1742996594013,1.21552116,629.14,628.59,1.18810563]
[1742996594312,1.21552116,629.13,628.59,1.18810563]
[1742996594510,1.21552116,629.12,628.59,1.18810563]
[1742996594711,1.21552116,629.11,628.59,1.18810563]
[1742996595007,1.21552116,629.1,628.59,1.18810563]
[1742996595207,1.21552116,629.09,628.59,1.18810563]
[1742996595513,1.21552116,629.08,628.59,1.18810563]
[1742996595713,0.90207292,629.09,628.59,1.18810563]
[1742996595908,0.483,629.22,628.37,1.18810563]
[1742996596109,1.21424382,629.21,628.38,0.26234247]
[1742996596317,2.11581989,629.2,628.38,0.26234247]
[1742996596514,1.21424382,629.19,628.38,0.26234247]
[1742996596715,2.11581989,629.18,628.38,0.26234247]
[1742996596917,1.21424382,629.17,628.38,0.26234247]
[1742996597109,1.21424382,629.16,628.38,0.26234247]
[1742996597314,1.21424382,629.15,628.38,0.26234247]
[1742996597514,2.11581989,629.14,628.38,0.26234247]
[1742996597713,1.21424382,629.13,628.38,0.26234247]
[1742996597918,1.21424382,629.12,628.39,1.18810563]
[1742996598217,1.21424382,629.11,628.4,0.26234247]
[1742996598418,1.21334225,629.1,628.4,0.26234247]
[1742996598619,1.21334225,629.09,628.4,0.26234247]
[1742996598818,0.27671756,629.21,628.4,0.26234247]
[1742996599025,1.21332243,629.2,628.4,0.26234247]
[1742996599319,1.21332243,629.19,628.4,0.26234247]
[1742996599521,2.11447058,629.18,628.4,0.26234247]
[1742996599819,2.11447058,629.17,628.41,0.26234247]
[1742996600023,0.27671756,629.21,628.34,0.26234247]
[1742996600024,2.11419797,629.16,628.34,0.26234247]
[1742996600319,2.11419797,629.15,628.35,0.26234247]
[1742996600518,1.21304982,629.14,628.34,0.26234247]
[1742996600713,1.21304982,629.13,628.35,0.26234247]
[1742996600913,1.21304982,629.12,628.34,0.26234247]
[1742996601119,1.21304982,629.11,628.34,0.26234247]
[1742996601318,1.21304982,629.1,628.34,0.26234247]
[1742996601515,2.11419797,629.09,628.34,0.26234247]
[1742996601719,1.21240849,629.08,628.35,0.26236723]
[1742996601920,1.21240849,629.07,628.33,1.45047286]
[1742996602118,1.21240849,629.06,628.34,0.26236723]
[1742996602319,2.11355664,629.05,628.34,0.26236723]
[1742996602516,1.21240849,629.04,628.34,0.26236723]
[1742996602720,1.21240849,629.03,628.34,0.26236723]
[1742996602915,1.21240849,629.02,628.34,0.26236723]
[1742996603119,0.27671756,629.21,628.34,0.26236723]
[1742996603319,1.21207442,629.2,628.35,0.26236545]
[1742996603521,1.21207442,629.19,628.34,0.26236545]
[1742996603821,1.21207442,629.18,628.35,0.26236545]
[1742996604023,1.21207442,629.18,628.33,1.18810563]
[1742996604024,1.21207442,629.17,628.34,0.26236545]
[1742996604220,1.21207442,629.16,628.34,0.26236545]
[1742996604423,1.21207442,629.15,628.34,0.26236545]
[1742996604622,1.21207442,629.14,628.34,0.26236545]
[1742996604823,1.21207442,629.13,628.33,1.18810563]
[1742996605019,1.21207442,629.12,628.34,0.26236882]
[1742996605219,1.21207442,629.11,628.34,0.26236882]
[1742996605421,1.21207442,629.1,628.34,0.26236882]
[1742996605621,1.21207442,629.09,628.34,0.26236882]
[1742996605825,1.21207442,629.08,628.34,0.26236882]
[1742996606024,1.21207442,629.07,628.34,0.26236882]
[1742996606217,1.21207442,629.06,628.34,0.26236882]
[1742996606418,1.21207442,629.05,628.34,0.26236882]
[1742996606622,0.27675057,629.13,628.34,0.26236882]
[1742996606823,1.21183834,629.12,628.42,1.18810563]
[1742996607126,2.11188244,629.11,628.43,0.26236882]
[1742996607326,1.21183834,629.1,628.43,0.26236882]
[1742996607527,2.11188244,629.09,628.43,0.26236882]
[1742996607728,1.21183834,629.08,628.43,0.26236882]
[1742996608028,1.21183834,629.07,628.43,0.26236882]
[1742996608222,1.21183834,629.06,628.43,0.26236882]
[1742996608422,1.21183834,629.05,628.43,0.26236882]
[1742996608631,0.426,629.07,628.43,0.26236882]
[1742996608928,1.21196283,629.06,628.43,0.26236882]
[1742996609127,1.21196283,629.05,628.43,0.26236882]
[1742996609326,0.426,629.07,628.53,1.18810563]
[1742996609533,1.212086,629.06,628.53,1.18810563]
[1742996609722,1.212086,629.05,628.53,1.18810563]
[1742996609928,0.426,629.07,628.53,1.18810563]
[1742996610128,1.21210964,629.06,628.53,1.18810563]
[1742996610328,0.426,629.07,628.53,1.18810563]
[1742996610628,1.21226879,629.06,628.53,1.18810563]
[1742996610928,0.426,629.07,628.53,1.18810563]
[1742996611325,0.426,629.07,628.4,1.18810563]
[1742996611526,0.90048016,629.06,628.41,0.26235953]
[1742996611730,0.426,629.07,628.41,0.26235953]
[1742996612724,0.91,629.07,628.41,0.26235953]
[1742996613627,1.21277253,629.06,628.41,0.26235953]
[1742996613827,1.21278851,629.05,628.42,1.18810563]
[1742996614130,1.21273036,629.04,628.43,0.26239815]
[1742996614333,1.21273036,629.03,628.43,0.26239815]
[1742996614532,1.21273036,629.02,628.43,0.26239815]
[1742996614730,1.21273036,629.01,628.43,0.26239815]
[1742996614932,1.21273036,629.0,628.43,0.26239815]
[1742996615231,2.11348468,628.99,628.43,0.26239815]
[1742996615430,1.21273036,628.98,628.43,0.26239815]
[1742996615635,1.21273036,628.97,628.43,0.26239815]
[1742996615831,0.27676377,629.05,628.43,0.26239815]
[1742996616030,1.2126998,629.04,628.43,0.26239815]
[1742996616230,1.2126998,629.03,628.43,0.26239815]
[1742996616431,1.2126998,629.02,628.43,0.26239815]
[1742996616635,1.2126998,629.01,628.43,1.45050378]
[1742996616831,2.11342653,629.0,628.44,0.26239815]
[1742996617038,1.2126998,628.99,628.44,0.26239815]
[1742996617232,2.11342653,628.98,628.43,1.18810563]
[1742996617441,1.2126998,628.97,628.44,0.26241408]
[1742996617739,0.27676817,629.04,628.44,0.26241408]
[1742996617939,2.1132676,629.03,628.43,1.18810563]
[1742996618134,1.21260721,629.02,628.44,0.26241123]
[1742996618335,1.21260721,629.01,628.44,0.26241123]
[1742996618533,2.1133061,629.0,628.44,0.26241123]
[1742996618733,1.21264571,628.99,628.44,0.26241123]
[1742996618933,1.21264571,628.98,628.44,0.26241123]
[1742996619138,1.21264571,628.97,628.47,1.18810563]
[1742996619337,0.90066039,628.97,628.48,0.26238291]
[1742996619936,0.91,629.07,628.48,0.26238291]
[1742996620134,1.21290251,629.06,628.48,0.26238291]
[1742996620341,2.11386296,629.05,628.48,0.26238291]
[1742996620536,1.21290251,629.04,628.48,0.26238291]
[1742996620737,1.21290251,629.03,628.48,0.26238291]
[1742996620943,1.21290251,629.02,628.48,0.26238291]
[1742996621244,1.21290251,629.01,628.49,1.18810563]
[1742996621444,1.21290251,629.0,628.5,0.26238291]
[1742996621644,0.90096045,629.03,628.5,0.26238291]
[1742996621846,1.21319265,629.02,628.5,0.26238291]
[1742996622048,1.21319265,629.01,628.5,0.26238291]
[1742996622345,1.21319265,629.0,628.5,0.26238291]
[1742996622546,0.789,629.05,628.5,0.26238291]
[1742996622748,1.21332925,629.04,628.49,1.18810563]
[1742996622950,1.21332925,629.03,628.49,1.18810563]
[1742996623247,1.21332925,629.02,628.49,1.18810563]
[1742996623447,1.21332925,629.01,628.49,1.18810563]
[1742996623646,1.21332925,629.0,628.49,1.18810563]
[1742996623844,1.21332925,628.99,628.59,1.18810563]
[1742996624048,1.21332925,628.98,628.59,1.18810563]
[1742996624243,0.90112385,629.0,628.59,1.18810563]
[1742996624445,1.21346327,628.99,628.59,1.18810563]
[1742996624645,1.21346327,628.98,628.59,1.18810563]
[1742996624948,0.789,629.05,628.59,1.18810563]
[1742996625142,1.21344499,629.04,628.59,1.18810563]
[1742996625346,1.21344499,629.03,628.59,1.18810563]
[1742996625643,1.21344499,629.02,628.48,1.18810563]
[1742996625841,2.11481035,629.01,628.48,1.18810563]
[1742996626041,1.21344499,629.0,628.48,1.18810563]
[1742996626243,1.21344499,628.99,628.48,1.18810563]
[1742996626447,1.21344499,628.98,628.48,1.18810563]
[1742996626646,1.21371889,628.97,628.48,1.18810563]
[1742996626842,0.789,629.05,628.48,1.18810563]
[1742996627042,1.21374822,629.04,628.48,1.18810563]
[1742996627248,2.11523215,629.03,628.48,1.18810563]
[1742996627447,1.21374822,629.02,628.48,1.18810563]
[1742996627647,1.21374822,629.01,628.48,1.18810563]
[1742996627844,1.21374822,629.0,628.48,1.18810563]
[1742996628049,1.21396107,628.99,628.43,1.18810563]
[1742996628246,0.90148393,629.0,628.43,1.18810563]
[1742996628447,1.21417901,628.99,628.43,1.18810563]
[1742996628650,0.90148393,629.0,628.43,1.18810563]
[1742996628850,1.21419591,628.99,628.43,1.18810563]
[1742996629052,0.789,629.05,628.43,1.18810563]
[1742996629253,1.21415044,629.04,628.43,1.18810563]
[1742996629450,1.21415044,629.03,628.43,1.18810563]
[1742996629646,1.21415044,629.02,628.43,1.18810563]
[1742996629849,1.21415044,629.01,628.48,1.18810563]
[1742996630049,1.21415044,629.0,628.48,1.18810563]
[1742996630247,1.21415044,628.99,628.48,1.18810563]
[1742996630445,1.21415044,628.98,628.48,1.18810563]
[1742996630645,0.90194058,628.98,628.48,1.18810563]
[1742996631045,0.789,629.05,628.48,1.18810563]
[1742996631250,1.21462548,629.04,628.48,1.18810563]
[1742996631448,1.21462548,629.03,628.48,1.18810563]
[1742996631645,1.21462548,629.02,628.49,1.18810563]
[1742996631846,2.11696839,629.01,628.49,1.18810563]
[1742996632051,1.21462548,629.0,628.49,1.18810563]
[1742996632251,1.21462548,628.99,628.49,1.18810563]
[1742996632451,1.21462548,628.98,628.49,1.18810563]
[1742996632651,1.21462548,628.97,628.49,1.18810563]
[1742996632851,0.90234291,628.99,628.49,1.18810563]
[1742996633049,1.21517024,628.98,628.49,1.18810563]
[1742996633249,1.21517024,628.97,628.49,1.18810563]
[1742996633447,0.426,628.98,628.49,1.18810563]
[1742996633654,1.21551477,628.97,628.49,1.18810563]
[1742996633947,0.426,628.98,628.49,1.18810563]
[1742996634152,1.21553785,628.97,628.49,1.18810563]
[1742996634352,1.21553785,628.96,628.49,1.18810563]
[1742996634553,0.426,628.98,628.49,1.18810563]
[1742996634749,1.21594954,628.97,628.49,1.18810563]
[1742996634948,1.21594954,628.96,628.49,1.18810563]
[1742996635153,0.426,628.98,628.49,1.18810563]
[1742996635354,1.21635824,628.97,628.49,1.18810563]
[1742996635554,0.426,628.98,628.49,1.18810563]
[1742996635750,2.11986665,628.97,628.49,1.18810563]
[1742996635954,1.21641556,628.96,628.49,1.18810563]
[1742996636155,1.21641556,628.95,628.49,1.18810563]
[1742996636354,0.484,628.97,628.52,1.18810563]
[1742996636558,1.21693907,628.96,628.52,1.18810563]
[1742996636755,1.21693907,628.95,628.52,1.18810563]
[1742996636957,1.21693907,628.94,628.52,1.18810563]
[1742996637152,0.90384676,628.94,628.52,1.18810563]
[1742996637351,1.21745714,628.93,628.52,1.18810563]
[1742996637551,0.90384676,628.94,628.52,1.18810563]
[1742996637756,0.484,628.97,628.52,1.18810563]
[1742996637952,1.21752985,628.96,628.52,1.18810563]
[1742996638158,1.21752985,628.95,628.52,1.18810563]
[1742996638458,1.21752985,628.94,628.52,1.18810563]
[1742996638758,1.21752985,628.93,628.52,1.18810563]
[1742996638955,0.90430112,628.94,628.52,1.18810563]